bitfinex/quotes_ETHUSD_20230904
["timestamp","ask_amount","ask_price","bid_price","bid_amount"]
[1693787992278,4.49753547,1635.9,1635.8,2.37945527]
[1693787993040,4.49753547,1635.9,1635.8,2.08185404]
[1693787993275,4.49753547,1635.9,1635.8,2.37909387]
[1693787994397,4.17306572,1635.9,1635.8,2.37909387]
[1693787994958,2.57043071,1635.9,1635.8,2.37909387]
[1693787995163,0.01100473,1635.9,1635.8,2.57051143]
[1693787995458,0.01100473,1635.9,1635.8,5.89172023]
[1693787995662,0.01100473,1635.9,1635.8,5.70030267]
[1693787995876,0.01100473,1635.9,1635.8,6.00858315]
[1693787996687,0.01100473,1635.9,1635.8,5.70030267]
[1693787998200,0.01100473,1635.9,1635.8,6.00842968]
[1693787998800,0.01100473,1635.9,1635.8,5.70030267]
[1693788032526,0.35450349,1635.9,1635.8,5.40306284]
[1693788038561,0.35450349,1635.9,1635.8,5.70524559]
[1693788058793,0.35450349,1635.9,1635.8,6.19375263]
[1693788061299,0.35450349,1635.9,1635.8,5.87254383]
[1693788065892,0.35450349,1635.9,1635.8,5.87282521]
[1693788066594,0.35450349,1635.9,1635.8,6.51482563]
[1693788067595,0.35450349,1635.9,1635.8,5.87282521]
[1693788068196,0.35450349,1635.9,1635.8,5.38431817]
[1693788074939,0.35450349,1635.9,1635.8,6.02631859]
[1693788075397,0.35450349,1635.9,1635.8,7.1652258]
[1693788096733,0.35450349,1635.9,1635.8,8.2522258]
[1693788113500,0.35450349,1635.9,1635.8,8.73857281]
[1693788120730,0.35450349,1635.9,1635.8,9.70157345]
[1693788120929,0.35450349,1635.9,1635.8,8.73857281]
[1693788121345,0.35450349,1635.9,1635.8,9.70157345]
[1693788121500,0.35450349,1635.9,1635.8,8.73857281]
[1693788122925,0.35450349,1635.9,1635.8,10.82357388]
[1693788123145,0.35450349,1635.9,1635.8,16.46557431]
[1693788123435,0.01100473,1635.9,1635.8,15.18157346]
[1693788123798,1.7158,1636.2,1636.1,3.0]
[1693788123997,1.9392,1636.4,1636.1,6.38431817]
[1693788124221,1.9392,1636.4,1636.3,3.08185404]
[1693788124733,0.64176549,1636.5,1636.3,3.08185404]
[1693788125071,0.01232113,1636.4,1636.3,3.08185404]
[1693788136522,0.32469633,1636.4,1636.3,3.08185404]
[1693788140416,0.32469633,1636.4,1636.3,3.86453074]
[1693788142636,0.32469633,1636.4,1636.3,6.86453074]
[1693788165575,0.32469633,1636.4,1636.3,10.097316]
[1693788165779,0.32469633,1636.4,1636.3,9.45624698]
[1693788165977,1.7806,1636.7,1636.6,3.0]
[1693788166178,1.9557,1636.8,1636.6,6.08185404]
[1693788166509,1.9557,1636.8,1636.7,3.08185404]
[1693788166670,3.38501373,1636.9,1636.7,3.08185404]
[1693788167012,0.01051109,1636.8,1636.7,3.08185404]
[1693788167608,1.64150757,1636.8,1636.7,5.52621104]
[1693788167798,2.78082675,1636.8,1636.7,5.52621104]
[1693788168108,2.78082675,1636.8,1636.7,3.08185404]
[1693788172130,1.64150757,1636.8,1636.7,3.08185404]
[1693788175633,0.01051109,1636.8,1636.7,3.08185404]
[1693788175834,4.47201373,1636.9,1636.7,3.08185404]
[1693788176042,4.1522982,1636.9,1636.7,3.08185404]
[1693788176837,0.01047148,1636.8,1636.7,3.08185404]
[1693788177137,0.01047148,1636.8,1636.7,5.38185404]
[1693788177935,4.1522982,1636.9,1636.7,5.38185404]
[1693788179008,0.01047148,1636.8,1636.7,5.38185404]
[1693788179938,4.1522982,1636.9,1636.7,5.38185404]
[1693788180842,0.01047148,1636.8,1636.7,5.38185404]
[1693788181306,0.3271915,1636.8,1636.7,5.38185404]
[1693788187177,0.77514047,1636.8,1636.7,5.38185404]
[1693788188334,1.77924109,1636.8,1636.7,5.38185404]
[1693788188938,2.42100658,1636.8,1636.7,5.38185404]
[1693788190365,1.97305761,1636.8,1636.7,5.38185404]
[1693788197556,0.3271915,1636.8,1636.7,5.38185404]
[1693788200893,0.96780099,1636.8,1636.7,5.38185404]
[1693788201184,2.02919041,1636.8,1636.7,5.38185404]
[1693788203754,3.38142757,1636.8,1636.7,5.38185404]
[1693788205784,4.34234181,1636.8,1636.7,5.38185404]
[1693788207806,3.70173232,1636.8,1636.7,5.38185404]
[1693788207973,4.34279646,1636.8,1636.7,5.38185404]
[1693788208907,3.70173232,1636.8,1636.7,5.38185404]
[1693788213010,4.98295131,1636.8,1636.7,5.38185404]
[1693788232790,3.70173232,1636.8,1636.7,5.38185404]
[1693788236530,5.91985882,1636.8,1636.7,2.3]
[1693788236734,10.92355109,1636.8,1636.7,2.3]
[1693788246444,10.9249353,1636.8,1636.7,2.3]
[1693788248704,11.40776222,1636.8,1636.7,2.3]
[1693788256733,12.68917945,1636.8,1636.7,2.3]
[1693788258649,12.68914086,1636.8,1636.7,2.3]
[1693788259157,11.40776222,1636.8,1636.7,2.3]
[1693788259815,12.68913033,1636.8,1636.7,2.3]
[1693788260449,12.68913052,1636.8,1636.7,2.3]
[1693788261857,11.08622257,1636.8,1636.7,2.3]
[1693788263361,10.60339565,1636.8,1636.7,2.3]
[1693788265656,10.60339565,1636.8,1636.7,5.38185404]
[1693788265657,7.98321705,1636.8,1636.7,5.38185404]
[1693788265855,3.38150195,1636.8,1636.7,5.38185404]
[1693788266022,2.02926479,1636.8,1636.7,5.38185404]
[1693788266218,0.3271915,1636.8,1636.7,5.38185404]
[1693788276948,0.32454778,1636.8,1636.7,5.38185404]
[1693788277150,0.32454778,1636.8,1636.7,5.92003944]
[1693788282484,0.32454778,1636.8,1636.7,5.38185404]
[1693788284999,0.32240078,1636.8,1636.7,5.38185404]
[1693788287893,0.32240078,1636.8,1636.7,7.82612404]
[1693788294010,0.32083155,1636.8,1636.7,7.82612404]
[1693788304128,0.31672002,1636.8,1636.7,7.82612404]
[1693788304438,2.36458387,1637.0,1636.7,9.01743644]
[1693788304738,2.36458387,1637.0,1636.8,3.08185404]
[1693788308302,3.32561454,1637.0,1636.8,3.08185404]
[1693788308497,2.36458387,1637.0,1636.8,3.08185404]
[1693788308716,3.32561454,1637.0,1636.8,3.08185404]
[1693788309613,1.70197237,1636.9,1636.8,3.08185404]
[1693788309932,1.70197237,1636.9,1636.8,3.98359768]
[1693788311939,3.03920765,1636.9,1636.8,3.98359768]
[1693788312436,3.03978707,1636.9,1636.8,3.98359768]
[1693788312636,0.64126248,1637.0,1636.9,3.0]
[1693788312839,2.872534,1637.1,1636.9,6.78021381]
[1693788313043,2.872534,1637.1,1637.0,3.08185404]
[1693788313245,1.123734,1637.1,1637.0,3.08185404]
[1693788313454,3.52206702,1637.1,1637.0,3.08185404]
[1693788314518,3.77075649,1637.1,1637.0,3.08185404]
[1693788320347,3.76821649,1637.1,1637.0,3.08185404]
[1693788328991,4.73011021,1637.1,1637.0,3.08185404]
[1693788332360,4.97554483,1637.1,1637.0,3.08185404]
[1693788333161,4.98080828,1637.1,1637.0,3.08185404]
[1693788335092,4.98080828,1637.1,1637.0,3.69003944]
[1693788335260,0.49938754,1637.1,1637.0,3.69003944]
[1693788336987,0.50466205,1637.1,1637.0,3.69003944]
[1693788358329,2.20706613,1637.1,1637.0,3.69003944]
[1693788362829,0.50466205,1637.1,1637.0,3.69003944]
[1693788364109,1.56580127,1637.1,1637.0,3.69003944]
[1693788365043,0.50466205,1637.1,1637.0,3.69003944]
[1693788370473,0.50466205,1637.1,1637.0,3.08185404]
[1693788373359,2.20687232,1637.1,1637.0,3.08185404]
[1693788373946,0.50466205,1637.1,1637.0,3.08185404]
[1693788374188,2.20687076,1637.1,1637.0,3.08185404]
[1693788376291,3.88535351,1637.1,1637.0,3.08185404]
[1693788376488,3.5650012,1637.1,1637.0,3.08185404]
[1693788379077,4.52662022,1637.1,1637.0,3.08185404]
[1693788379594,3.5650012,1637.1,1637.0,3.08185404]
[1693788380396,4.52662022,1637.1,1637.0,3.08185404]
[1693788384156,3.5650012,1637.1,1637.0,3.08185404]
[1693788385156,5.7378014,1637.1,1637.0,3.08185404]
[1693788385453,10.61949906,1637.1,1637.0,3.08185404]
[1693788387020,12.22219742,1637.1,1637.0,3.08185404]
[1693788387312,10.94003873,1637.1,1636.7,2.3]
[1693788387476,1.60286535,1636.9,1636.8,3.08185404]
[1693788387676,5.10893779,1636.9,1636.8,3.08185404]
[1693788388013,5.11420418,1636.9,1636.8,3.08185404]
[1693788388483,4.15248497,1636.9,1636.8,3.08185404]
[1693788391458,4.66279217,1636.9,1636.8,3.08185404]
[1693788393603,3.3048491,1636.9,1636.8,3.08185404]
[1693788393812,4.69571535,1636.9,1636.8,3.08185404]
[1693788394344,3.3048491,1636.9,1636.8,3.08185404]
[1693788398310,1.60257359,1636.9,1636.8,3.08185404]
[1693788398463,3.30507926,1636.9,1636.8,3.08185404]
[1693788399319,1.60257359,1636.9,1636.8,3.08185404]
[1693788407804,2.21097787,1636.9,1636.8,3.08185404]
[1693788408018,3.91350841,1636.9,1636.8,3.08185404]
[1693788409685,3.91246208,1636.9,1636.7,2.3]
[1693788409951,4.60269836,1636.8,1636.7,2.3]
[1693788410107,8.55769375,1636.8,1636.7,2.3]
[1693788410307,9.61907815,1636.8,1636.7,2.3]
[1693788410507,10.12316352,1636.8,1636.7,2.3]
[1693788410937,11.21547022,1636.8,1636.7,2.3]
[1693788411339,12.49500891,1636.8,1636.7,2.3]
[1693788411917,10.89231055,1636.8,1636.7,2.3]
[1693788413563,11.07644657,1636.8,1636.7,2.3]
[1693788414362,10.36068102,1636.8,1636.7,2.3]
[1693788415178,11.07626005,1636.8,1636.7,2.3]
[1693788415381,10.36057223,1636.8,1636.7,2.3]
[1693788421266,10.36057223,1636.8,1636.7,5.38185404]
[1693788421863,10.36057223,1636.8,1636.7,3.08185404]
[1693788422882,9.0814644,1636.8,1636.7,3.08185404]
[1693788423237,9.72083389,1636.8,1636.7,3.08185404]
[1693788423582,9.0814644,1636.8,1636.7,3.08185404]
[1693788426154,9.0814644,1636.8,1636.7,5.38185404]
[1693788429513,10.36057223,1636.8,1636.7,5.38185404]
[1693788429849,9.0814644,1636.8,1636.7,5.38185404]
[1693788430181,10.36057223,1636.8,1636.7,5.38185404]
[1693788433164,11.07778518,1636.8,1636.7,5.38185404]
[1693788433384,10.36153622,1636.8,1636.7,5.38185404]
[1693788433707,10.36156132,1636.8,1636.7,5.38185404]
[1693788438010,8.29791986,1636.8,1636.7,5.38185404]
[1693788448312,9.01563766,1636.8,1636.7,5.38185404]
[1693788451030,10.10263766,1636.8,1636.7,5.38185404]
[1693788453408,11.70152245,1636.8,1636.7,5.38185404]
[1693788455325,10.42241462,1636.8,1636.7,5.38185404]
[1693788455629,11.69414636,1636.8,1636.7,5.38185404]
[1693788465748,10.09526157,1636.8,1636.7,5.38185404]
[1693788466855,12.01392332,1636.8,1636.7,5.38185404]
[1693788467065,10.09526157,1636.8,1636.7,5.38185404]
[1693788474272,10.09526157,1636.8,1636.7,2.3]
[1693788475732,12.01392332,1636.8,1636.7,2.3]
[1693788476573,10.09526157,1636.8,1636.7,2.3]
[1693788507492,12.01392332,1636.8,1636.7,2.3]
[1693788519837,10.09526157,1636.8,1636.7,2.3]
[1693788520043,8.82352983,1636.8,1636.7,2.3]
[1693788532024,8.82352983,1636.8,1636.7,5.38185404]
[1693788532025,9.34070449,1636.8,1636.7,5.38185404]
[1693788532535,10.62384234,1636.8,1636.7,5.38185404]
[1693788532712,9.01966768,1636.8,1636.7,5.38185404]
[1693788535350,8.30377091,1636.8,1636.7,5.38185404]
[1693788536449,8.30377091,1636.8,1636.7,5.92003944]
[1693788537343,7.02063306,1636.8,1636.7,5.92003944]
[1693788537861,8.30377091,1636.8,1636.7,5.92003944]
[1693788538149,9.03884833,1636.8,1636.7,5.92003944]
[1693788538354,9.03884833,1636.8,1636.7,5.38185404]
[1693788539165,8.30350461,1636.8,1636.7,5.38185404]
[1693788539456,9.03869395,1636.8,1636.7,5.38185404]
[1693788541059,11.72986861,1636.8,1636.7,5.38185404]
[1693788541361,10.44673076,1636.8,1636.7,5.38185404]
[1693788543253,11.39078527,1636.8,1636.7,5.38185404]
[1693788543454,9.78661061,1636.8,1636.7,2.3]
[1693788545062,11.70527236,1636.8,1636.7,2.3]
[1693788552585,9.78661061,1636.8,1636.7,2.3]
[1693788554084,11.38899523,1636.8,1636.7,2.3]
[1693788558316,9.78661061,1636.8,1636.7,2.3]
[1693788558815,11.38895073,1636.8,1636.7,2.3]
[1693788559110,9.78661061,1636.8,1636.7,2.3]
[1693788563610,11.38892118,1636.8,1636.7,2.3]
[1693788568222,9.78661061,1636.8,1636.7,2.3]
[1693788568600,11.38891868,1636.8,1636.7,2.3]
[1693788568787,9.78661061,1636.8,1636.7,2.3]
[1693788569616,11.38891628,1636.8,1636.7,2.3]
[1693788569824,9.78661061,1636.8,1636.7,2.3]
[1693788570228,11.38891396,1636.8,1636.7,2.3]
[1693788570430,9.78661061,1636.8,1636.7,2.3]
[1693788572193,11.38890862,1636.8,1636.7,2.3]
[1693788575433,10.44485411,1636.8,1636.7,2.3]
[1693788583249,8.8425561,1636.8,1636.7,2.3]
[1693788590460,8.78038028,1636.8,1636.7,2.3]
[1693788590964,8.77507358,1636.8,1636.7,2.3]
[1693788591153,8.78107402,1636.8,1636.7,2.3]
[1693788598085,10.69973577,1636.8,1636.7,2.3]
[1693788605295,10.84096177,1636.8,1636.7,2.3]
[1693788624949,10.23540648,1636.8,1636.7,2.3]
[1693788627939,12.16034817,1636.8,1636.7,2.3]
[1693788632244,12.2884523,1636.8,1636.7,2.3]
[1693788632470,12.16034817,1636.8,1636.7,2.3]
[1693788640978,12.15950157,1636.8,1636.7,2.3]
[1693788642278,14.39535652,1636.8,1636.7,2.3]
[1693788642491,13.24297698,1636.8,1636.7,2.3]
[1693788642978,13.56544352,1636.8,1636.7,2.3]
[1693788643164,15.48695485,1636.8,1636.7,2.3]
[1693788646587,15.35400752,1636.8,1636.7,2.3]
[1693788647186,15.35249146,1636.8,1636.7,2.3]
[1693788654585,13.3080223,1636.8,1636.7,2.3]
[1693788654782,13.57461865,1636.8,1636.7,2.3]
[1693788655201,15.548833,1636.8,1636.7,2.3]
[1693788658108,15.545564,1636.8,1636.7,2.3]
[1693788658403,13.30353792,1636.8,1636.7,2.3]
[1693788659810,15.545564,1636.8,1636.7,2.3]
[1693788659973,13.30353792,1636.8,1636.7,2.3]
[1693788660168,15.545564,1636.8,1636.7,2.3]
[1693788662943,15.545564,1636.8,1636.7,1.8073]
[1693788663239,15.545564,1636.8,1635.6,33.41]
[1693788663240,1.69899192,1636.6,1635.6,33.41]
[1693788663381,1.69899192,1636.6,1635.8,3.08185404]
[1693788663382,1.72740854,1636.1,1635.8,3.08185404]
[1693788663582,0.64040854,1636.1,1635.8,3.08185404]
[1693788663784,1.70230744,1636.1,1635.8,3.08185404]
[1693788664015,1.70230744,1636.1,1635.8,3.74334944]
[1693788665322,1.087,1636.0,1635.8,3.08185404]
[1693788665621,0.64040854,1636.0,1635.8,3.08185404]
[1693788665780,1.70233335,1636.0,1635.8,3.08185404]
[1693788666182,1.06192481,1636.0,1635.8,3.08185404]
[1693788666384,1.70233335,1636.0,1635.8,3.08185404]
[1693788666820,2.68802136,1636.1,1635.8,3.08185404]
[1693788667020,1.06192093,1636.0,1635.8,3.08185404]
[1693788667183,1.70232947,1636.0,1635.8,3.08185404]
[1693788667382,2.68802136,1636.1,1635.8,3.08185404]
[1693788672748,2.68802136,1636.1,1635.7,3.5331]
[1693788672749,1.087,1635.9,1635.7,3.5331]
[1693788672955,1.087,1635.8,1635.3,0.1]
[1693788673124,5.34297617,1635.8,1635.3,0.1]
[1693788673315,1.087,1635.7,1635.3,1.6337]
[1693788673516,3.0,1635.7,1635.3,1.6337]
[1693788673858,0.63973849,1635.7,1635.3,2.09707]
[1693788674218,0.63973849,1635.7,1635.3,0.1]
[1693788674219,1.3580456,1635.6,1635.3,0.1]
[1693788674415,1.087,1635.5,1635.3,0.1]
[1693788674617,0.2710456,1635.6,1635.3,0.1]
[1693788674618,0.91078409,1635.6,1635.3,0.1]
[1693788675355,0.2710456,1635.6,1635.3,1.187]
[1693788675518,0.2710456,1635.6,1635.3,0.1]
[1693788676018,3.63973849,1635.7,1635.3,0.1]
[1693788676350,3.63973849,1635.7,1635.4,3.08185404]
[1693788676516,0.63973849,1635.7,1635.4,3.40003944]
[1693788676719,0.27093906,1635.6,1635.4,3.40003944]
[1693788676937,3.27093906,1635.6,1635.4,3.40003944]
[1693788677141,0.63973849,1635.7,1635.4,3.40003944]
[1693788677348,1.70190963,1635.7,1635.4,3.40003944]
[1693788677536,3.0,1635.7,1635.5,0.34000394]
[1693788677745,3.63973849,1635.8,1635.6,3.08185404]
[1693788678455,1.43973849,1635.8,1635.6,3.08185404]
[1693788679746,1.94129545,1635.8,1635.6,3.08185404]
[1693788680050,4.94129545,1635.8,1635.6,3.08185404]
[1693788680762,5.64008577,1635.8,1635.4,1.5971]
[1693788681059,5.64008577,1635.8,1635.5,3.08185404]
[1693788681060,1.087,1635.7,1635.5,3.08185404]
[1693788682722,6.02829545,1635.8,1635.5,3.08185404]
[1693788682924,4.94129545,1635.8,1635.5,3.08185404]
[1693788685877,6.66599545,1635.8,1635.5,3.08185404]
[1693788688339,7.53725577,1635.8,1635.5,3.08185404]
[1693788688760,1.70191941,1635.7,1635.5,3.08185404]
[1693788690274,8.94412501,1635.8,1635.5,3.08185404]
[1693788690275,9.5838635,1635.8,1635.5,3.08185404]
[1693788691354,8.71260318,1635.8,1635.5,3.08185404]
[1693788691675,0.27227599,1635.7,1635.5,3.08185404]
[1693788700871,0.91201448,1635.7,1635.5,3.08185404]
[1693788701077,0.27227599,1635.7,1635.5,3.08185404]
[1693788701399,1.97418017,1635.7,1635.5,3.08185404]
[1693788701608,0.91201448,1635.7,1635.5,3.08185404]
[1693788704566,1.72673849,1635.6,1635.5,3.08185404]
[1693788704898,4.38225196,1635.6,1635.5,3.08185404]
[1693788705066,2.78893881,1635.6,1635.5,3.08185404]
[1693788705396,4.38225002,1635.6,1635.5,3.08185404]
[1693788706784,4.65389092,1635.6,1635.5,3.08185404]
[1693788707704,6.57059501,1635.6,1635.5,3.08185404]
[1693788708781,5.61098728,1635.6,1635.5,3.08185404]
[1693788709198,6.57059501,1635.6,1635.5,3.08185404]
[1693788709400,5.93085652,1635.6,1635.5,3.08185404]
[1693788710411,4.97376016,1635.6,1635.5,3.08185404]
[1693788710907,5.61380267,1635.6,1635.5,3.08185404]
[1693788711215,4.97376016,1635.6,1635.5,3.08185404]
[1693788711772,5.61392441,1635.6,1635.5,3.08185404]
[1693788711969,4.52692441,1635.6,1635.5,3.08185404]
[1693788714277,3.88676016,1635.6,1635.5,3.08185404]
[1693788715044,4.52724733,1635.6,1635.5,3.08185404]
[1693788715196,3.88676016,1635.6,1635.5,3.08185404]
[1693788715617,4.52738792,1635.6,1635.5,3.08185404]
[1693788716320,3.88676016,1635.6,1635.5,3.08185404]
[1693788716521,4.52757126,1635.6,1635.5,3.08185404]
[1693788716722,3.56796353,1635.6,1635.5,3.08185404]
[1693788717226,3.88676016,1635.6,1635.5,3.08185404]
[1693788717923,4.5278069,1635.6,1635.5,3.08185404]
[1693788718327,3.88676016,1635.6,1635.5,3.08185404]
[1693788721714,1.87264551,1635.6,1635.5,3.08185404]
[1693788721914,4.52815704,1635.6,1635.5,3.08185404]
[1693788722630,4.52815704,1635.6,1635.5,3.39003944]
[1693788722835,0.2716409,1635.6,1635.5,3.39003944]
[1693788723147,1.97512914,1635.6,1635.5,3.39003944]
[1693788723310,1.70348824,1635.6,1635.5,3.39003944]
[1693788723507,4.25626194,1635.6,1635.5,3.08185404]
[1693788723841,1.85679561,1635.6,1635.5,3.08185404]
[1693788724139,4.51205294,1635.6,1635.5,3.08185404]
[1693788729671,3.87065606,1635.6,1635.5,3.08185404]
[1693788731332,6.06895614,1635.6,1635.5,3.08185404]
[1693788731537,5.15262988,1635.6,1635.5,3.08185404]
[1693788736434,8.12202741,1635.6,1635.3,0.1]
[1693788736635,4.25882601,1635.5,1635.4,3.08185404]
[1693788736833,3.86783163,1635.5,1635.4,3.08185404]
[1693788739051,4.95483163,1635.5,1635.4,3.08185404]
[1693788739260,5.67486025,1635.5,1635.4,3.08185404]
[1693788740941,6.95433723,1635.5,1635.4,3.08185404]
[1693788741331,7.87943033,1635.5,1635.4,3.08185404]
[1693788741553,9.47877655,1635.5,1635.4,3.08185404]
[1693788742267,7.87943033,1635.5,1635.4,3.08185404]
[1693788746564,6.95337289,1635.5,1635.4,3.08185404]
[1693788747096,6.23334427,1635.5,1635.4,3.08185404]
[1693788747297,4.95386729,1635.5,1635.4,3.08185404]
[1693788750600,3.86686729,1635.5,1635.4,3.08185404]
[1693788756997,6.86686729,1635.5,1635.4,3.08185404]
[1693788757910,6.86706793,1635.5,1635.4,3.08185404]
[1693788758402,6.54676792,1635.5,1635.4,3.08185404]
[1693788765313,7.50764836,1635.5,1635.4,3.08185404]
[1693788768515,6.86706793,1635.5,1635.4,3.08185404]
[1693788771388,8.14824185,1635.5,1635.4,3.08185404]
[1693788775338,9.074308,1635.5,1635.4,3.08185404]
[1693788781592,8.14928419,1635.5,1635.4,3.40003944]
[1693788781848,8.1506979,1635.5,1635.4,3.40003944]
[1693788782195,6.86812052,1635.5,1635.4,3.40003944]
[1693788782396,8.1506979,1635.5,1635.4,3.08185404]
[1693788782624,6.86812052,1635.5,1635.4,3.08185404]
[1693788783408,8.1506979,1635.5,1635.4,3.08185404]
[1693788783940,3.25043309,1635.5,1635.4,3.08185404]
[1693788784141,8.64843554,1635.5,1635.4,3.08185404]
[1693788784304,5.99275911,1635.5,1635.4,3.08185404]
[1693788784509,7.58616497,1635.5,1635.4,3.08185404]
[1693788784704,8.64843554,1635.5,1635.4,3.08185404]
[1693788785520,9.57430885,1635.5,1635.4,3.08185404]
[1693788786009,8.15094218,1635.5,1635.4,3.08185404]
[1693788788859,5.15094218,1635.5,1635.4,3.08185404]
[1693788790358,7.1638526,1635.5,1635.4,3.08185404]
[1693788790523,9.82054558,1635.5,1635.4,3.08185404]
[1693788793867,7.1638526,1635.5,1635.4,3.08185404]
[1693788797434,11.76726871,1635.5,1635.4,3.08185404]
[1693788798234,14.76726871,1635.5,1635.4,3.08185404]
[1693788800030,13.68026871,1635.5,1635.4,3.08185404]
[1693788800233,12.0768526,1635.5,1635.4,3.08185404]
[1693788800956,11.15102111,1635.5,1635.4,3.08185404]
[1693788802936,12.07689643,1635.5,1635.4,3.08185404]
[1693788804272,12.56518599,1635.5,1635.4,3.08185404]
[1693788807082,12.07689643,1635.5,1635.4,3.08185404]
[1693788807575,6.25043309,1635.5,1635.4,3.08185404]
[1693788807774,12.07721333,1635.5,1635.4,3.08185404]
[1693788818285,12.07721333,1635.5,1635.4,3.40003944]
[1693788822367,6.86858317,1635.5,1635.4,3.40003944]
[1693788830480,8.1515104,1635.5,1635.4,3.08185404]
[1693788830671,9.17506593,1635.5,1635.4,3.08185404]
[1693788834711,9.6678871,1635.5,1635.4,3.08185404]
[1693788838436,8.64424869,1635.5,1635.4,3.08185404]
[1693788840447,9.68200917,1635.5,1635.4,3.08185404]
[1693788843030,11.28566821,1635.5,1635.4,3.08185404]
[1693788844036,3.74325426,1635.5,1635.4,3.08185404]
[1693788844235,11.28607185,1635.5,1635.4,3.08185404]
[1693788844440,11.21306018,1635.5,1635.4,3.08185404]
[1693788850657,12.30006018,1635.5,1635.4,3.08185404]
[1693788850857,12.41957344,1635.5,1635.4,3.08185404]
[1693788852822,11.33257344,1635.5,1635.4,3.08185404]
[1693788858435,12.41957344,1635.5,1635.4,3.08185404]
[1693788861940,12.41957344,1635.5,1635.3,0.1]
[1693788862140,4.90013245,1635.4,1635.3,3.18185404]
[1693788862665,5.07382351,1635.4,1635.3,3.18185404]
[1693788866368,6.12017355,1635.4,1635.3,3.18185404]
[1693788868345,9.0902672,1635.4,1635.3,0.1]
[1693788868545,11.89476076,1635.4,1635.3,0.1]
[1693788871784,11.93818352,1635.4,1635.3,0.1]
[1693788875387,11.93818352,1635.4,1635.3,3.18185404]
[1693788875563,11.61609868,1635.4,1635.3,3.18185404]
[1693788880706,13.21997713,1635.4,1635.3,3.18185404]
[1693788880889,11.61609868,1635.4,1635.3,3.18185404]
[1693788881406,13.21997713,1635.4,1635.3,3.18185404]
[1693788885320,11.93818352,1635.4,1635.3,3.18185404]
[1693788886342,13.22010964,1635.4,1635.3,3.18185404]
[1693788886837,11.93818352,1635.4,1635.3,3.18185404]
[1693788887596,13.220106,1635.4,1635.3,3.18185404]
[1693788887983,11.93818352,1635.4,1635.3,3.18185404]
[1693788888536,13.22013627,1635.4,1635.3,3.18185404]
[1693788889500,11.93818352,1635.4,1635.3,3.18185404]
[1693788898625,5.67032902,1635.4,1635.3,3.18185404]
[1693788898831,10.57675151,1635.4,1635.3,3.18185404]
[1693788901527,10.57675151,1635.4,1635.3,0.1]
[1693788901733,8.97389789,1635.4,1635.3,0.1]
[1693788904231,8.97400511,1635.4,1635.3,0.1]
[1693788913006,10.8974803,1635.4,1635.3,0.1]
[1693788913205,12.6260542,1635.4,1635.3,0.1]
[1693788918433,12.63600807,1635.4,1635.3,0.1]
[1693788921361,10.71200954,1635.4,1635.3,0.1]
[1693788926271,12.63600807,1635.4,1635.3,0.1]
[1693788932180,12.63996778,1635.4,1635.3,0.1]
[1693788932485,12.42285396,1635.4,1635.3,0.1]
[1693788933681,17.66751891,1635.4,1635.0,0.1]
[1693788933898,1.087,1635.0,1634.8,0.38996134]
[1693788934178,1.087,1634.9,1634.5,1.6218]
[1693788934386,1.60252287,1634.7,1634.6,3.08185404]
[1693788934581,4.25870403,1634.7,1634.6,3.08185404]
[1693788935242,4.26260922,1634.7,1634.6,3.08185404]
[1693788935465,3.30077566,1634.7,1634.6,3.08185404]
[1693788936362,1.70706696,1634.7,1634.6,3.08185404]
[1693788937484,0.00390519,1634.7,1634.6,3.08185404]
[1693788938182,0.00390519,1634.7,1634.5,0.403961]
[1693788938386,0.00390519,1634.7,1634.5,3.48581504]
[1693788938983,0.00390519,1634.7,1634.5,3.09585404]
[1693788943463,0.00390519,1634.7,1634.6,3.08185404]
[1693788944357,0.00390519,1634.7,1634.6,3.39143944]
[1693788946262,3.0,1634.8,1634.6,3.39143944]
[1693788946467,3.0,1634.8,1634.7,3.08185404]
[1693788947370,3.00378335,1634.8,1634.7,3.08185404]
[1693788970621,4.0664739,1634.8,1634.7,3.08185404]
[1693788971320,3.00378335,1634.8,1634.7,3.08185404]
[1693788971523,4.70716281,1634.8,1634.7,3.08185404]
[1693788974429,6.30119921,1634.8,1634.7,3.08185404]
[1693788977401,7.26303277,1634.8,1634.7,3.08185404]
[1693788978347,6.62234346,1634.8,1634.7,3.08185404]
[1693788988434,7.90478821,1634.8,1634.7,3.08185404]
[1693788993265,9.04760116,1634.8,1634.7,3.08185404]
[1693788999673,3.00378335,1634.8,1634.7,3.08185404]
[1693788999973,9.05857117,1634.8,1634.7,3.08185404]
[1693789016809,10.14557117,1634.8,1634.7,3.08185404]
[1693789023177,7.14557117,1634.8,1634.7,3.08185404]
[1693789027825,6.05857117,1634.8,1634.7,3.08185404]
[1693789028402,3.62319871,1634.8,1634.7,3.39003944]
[1693789028927,4.26494049,1634.8,1634.7,3.39003944]
[1693789029225,3.62319871,1634.8,1634.7,3.08185404]
[1693789029589,2.56049595,1634.8,1634.7,3.08185404]
[1693789035928,3.20211141,1634.8,1634.7,3.08185404]
[1693789037367,1.70810157,1634.8,1634.7,3.08185404]
[1693789037560,1.70810157,1634.8,1634.7,4.16885404]
[1693789037561,0.00378335,1634.8,1634.7,4.16885404]
[1693789037834,0.00378335,1634.8,1634.7,4.27873944]
[1693789038227,0.64161546,1635.0,1634.8,3.0]
[1693789038400,0.64161546,1635.0,1634.9,3.08185404]
[1693789038919,1.70411987,1635.0,1634.9,3.08185404]
[1693789039233,0.6452937,1635.0,1634.9,3.08185404]
[1693789039426,0.6452937,1635.0,1634.9,3.69003944]
[1693789039802,0.00367824,1635.0,1634.9,3.69003944]
[1693789057254,3.48137392,1635.2,1634.9,3.69003944]
[1693789057453,3.48137392,1635.2,1635.0,3.08185404]
[1693789058223,0.003676,1635.1,1635.0,3.08185404]
[1693789059223,3.48137392,1635.2,1635.0,3.08185404]
[1693789060261,0.00367058,1635.1,1635.0,3.08185404]
[1693789060458,1.06617031,1635.1,1635.0,3.08185404]
[1693789060663,1.70778577,1635.1,1635.0,3.08185404]
[1693789070879,0.64528604,1635.1,1635.0,3.08185404]
[1693789071277,3.30153549,1635.1,1635.0,3.08185404]
[1693789075863,4.26419395,1635.1,1635.0,3.08185404]
[1693789078984,3.62257849,1635.1,1635.0,3.08185404]
[1693789082780,5.92690588,1635.1,1635.0,3.08185404]
[1693789089479,4.86440615,1635.1,1635.0,3.08185404]
[1693789096189,5.92690588,1635.1,1635.0,3.08185404]
[1693789100775,6.85777125,1635.1,1635.0,3.08185404]
[1693789108294,5.92690588,1635.1,1635.0,3.08185404]
[1693789118208,5.9232353,1635.1,1635.0,3.08185404]
[1693789126054,4.26057575,1635.1,1635.0,6.08185404]
[1693789126354,1.28371824,1635.2,1635.0,6.08185404]
[1693789126355,0.64173052,1635.2,1635.0,6.08185404]
[1693789126651,0.64173052,1635.2,1635.1,3.69003944]